fUSD/lending_fUSD_20250606
["ID","MTS","AMOUNT","RATE_DAILY","PERIOD"]
[364798046,1749245443085,-1294.16,0.00027397,5]
[364798047,1749245443095,-1215.8,0.00027397,5]
[364798048,1749245443104,-1228.33,0.00027397,5]
[364798049,1749245443114,-632.6,0.00027397,5]
[364798050,1749245443124,-480.0,0.00027397,5]
[364798051,1749245443134,-480.0,0.00027397,5]
[364798052,1749245443143,-692.3,0.00027397,5]
[364798054,1749245443153,-1300.84,0.00027397,5]
[364798056,1749245443163,-480.0,0.00027397,5]
[364798058,1749245443173,-1266.65,0.00027397,5]
[364798059,1749245443183,-12112.58,0.00027397,5]
[364798060,1749245443192,-497.69,0.00027397,5]
[364798061,1749245443202,-683.2,0.00027397,5]
[364798062,1749245443211,-480.0,0.00027397,5]
[364798063,1749245443220,-500.0,0.00027397,2]
[364798064,1749245443231,-500.0,0.00027397,2]
[364798065,1749245443241,-494.00442391,0.00027397,2]
[364798066,1749245443250,-501.63,0.00027397,5]
[364798067,1749245443260,-480.0,0.00027397,5]
[364798068,1749245443270,-480.0,0.00027397,5]
[364798069,1749245443279,-705.09,0.00027397,5]
[364798070,1749245443289,-4732.68,0.00027397,5]
[364798072,1749245443298,-717.45,0.00027397,5]
[364798073,1749245443308,-974.5,0.00027397,5]
[364798074,1749245443317,-4416.75,0.00027397,5]
[364798075,1749245443327,-1656.72,0.00027397,5]
[364798076,1749245443337,-480.0,0.00027397,5]
[364798078,1749245443346,-480.0,0.00027397,5]
[364798079,1749245443355,-480.0,0.00027397,5]
[364798080,1749245443364,-480.0,0.00027397,5]
[364798081,1749245443374,-480.0,0.00027397,5]
[364798082,1749245443384,-682.68,0.00027397,5]
[364798083,1749245443394,-480.0,0.00027397,5]
[364798084,1749245443403,-217.752716,0.00027397,5]
[364798085,1749245443412,-607.26,0.00027397,5]
[364798086,1749245443422,-7562.75,0.00027397,5]
[364798087,1749245443432,-597.24,0.00027397,5]
[364798088,1749245443442,-480.0,0.00027397,5]
[364798089,1749245443453,-3844.59,0.00027397,5]
[364798090,1749245443462,-621.94,0.00027397,5]
[364798091,1749245443472,-480.0,0.00027397,5]
[364798092,1749245443482,-480.0,0.00027397,5]
[364798093,1749245443492,-480.0,0.00027397,5]
[364798094,1749245443501,-1661.61,0.00027397,5]
[364798095,1749245443511,-273.88705347,0.00027397,5]
[364798096,1749245443521,-500.0,0.00027397,2]
[364798097,1749245443531,-480.0,0.00027397,5]
[364798098,1749245443541,-672.61,0.00027397,5]
[364798099,1749245443551,-480.0,0.00027397,5]
[364798100,1749245443561,-2171.5,0.00027397,5]
[364798101,1749245443572,-480.0,0.00027397,5]
[364798102,1749245443581,-480.0,0.00027397,5]
[364798103,1749245443590,-904.82,0.00027397,5]
[364798104,1749245443600,-480.0,0.00027397,5]
[364798105,1749245443615,-487.01,0.00027397,5]
[364798106,1749245443624,-3523.57,0.00027397,5]
[364798107,1749245443635,-1412.37,0.00027397,5]
[364798108,1749245443646,-480.0,0.00027397,5]
[364798109,1749245443656,-16871.99,0.00027397,5]
[364798110,1749245443666,-179.546228,0.00027397,5]
[364798111,1749245443678,-590.09,0.00027397,5]
[364798112,1749245443688,-480.0,0.00027397,5]
[364798113,1749245443697,-3605.79,0.00027397,5]
[364798114,1749245443707,-1584.5,0.00027397,5]
[364798115,1749245443717,-480.0,0.00027397,5]
[364798116,1749245443726,-569.63,0.00027397,5]
[364798117,1749245443737,-480.0,0.00027397,5]
[364798118,1749245443747,-1945.39,0.00027397,5]
[364798119,1749245443757,-480.0,0.00027397,5]
[364798120,1749245443766,-3465.3,0.00027397,5]
[364798121,1749245443776,-1081.7,0.00027397,5]
[364798122,1749245443785,-480.0,0.00027397,5]
[364798123,1749245443795,-2006.64,0.00027397,5]
[364798126,1749245443805,-531.04,0.00027397,5]
[364798128,1749245443815,-607.53,0.00027397,5]
[364798129,1749245443825,-480.0,0.00027397,5]
[364798130,1749245443835,-1607.92,0.00027397,5]
[364798131,1749245443845,-480.0,0.00027397,5]
[364798132,1749245443854,-500.0,0.00027397,5]
[364798133,1749245443864,-480.0,0.00027397,5]
[364798134,1749245443873,-500.0,0.00027397,5]
[364798135,1749245443883,-500.0,0.00027397,5]
[364798136,1749245443892,-500.0,0.00027397,5]
[364798137,1749245443901,-500.0,0.00027397,5]
[364798138,1749245443911,-1750.07,0.00027397,5]
[364798139,1749245443920,-1119.57,0.00027397,5]
[364798140,1749245443930,-911.9,0.00027397,5]
[364798141,1749245443939,-480.0,0.00027397,5]
[364798142,1749245443950,-480.0,0.00027397,5]
[364798143,1749245443960,-480.0,0.00027397,5]
[364798144,1749245443970,-1710.78,0.00027397,5]
[364798145,1749245443980,-689.26,0.00027397,5]
[364798146,1749245443990,-480.0,0.00027397,5]
[364798147,1749245444000,-480.0,0.00027397,5]
[364798148,1749245444014,-500.0,0.00027397,5]
[364798149,1749245444024,-500.0,0.00027397,5]
[364798150,1749245444034,-1070.37,0.00027397,5]
[364798151,1749245444044,-623.94,0.00027397,5]
[364798152,1749245444054,-480.0,0.00027397,5]
[364798153,1749245444066,-1791.7,0.00027397,5]
[364798154,1749245444075,-480.0,0.00027397,5]
[364798155,1749245444086,-1965.72,0.00027397,5]
[364798156,1749245444096,-480.0,0.00027397,5]
[364798157,1749245444106,-240.124881,0.00027397,5]
[364798158,1749245444115,-1996.69,0.00027397,5]
[364798159,1749245444125,-3288.44,0.00027397,5]
[364798160,1749245444135,-480.0,0.00027397,5]
[364798161,1749245444145,-1032.5,0.00027397,5]
[364798162,1749245444154,-771.7,0.00027397,5]
[364798163,1749245444164,-1627.97,0.00027397,5]
[364798164,1749245444174,-480.0,0.00027397,5]
[364798165,1749245444183,-670.33,0.00027397,5]
[364798166,1749245444193,-575.24,0.00027397,5]
[364798167,1749245444202,-4755.29,0.00027397,5]
[364798168,1749245444212,-2179.19,0.00027397,5]
[364798169,1749245444222,-480.0,0.00027397,5]
[364798170,1749245444232,-480.0,0.00027397,2]
[364798171,1749245444241,-1950.69,0.00027397,5]
[364798172,1749245444251,-480.0,0.00027397,5]
[364798173,1749245444260,-480.0,0.00027397,5]
[364798174,1749245444270,-622.31,0.00027397,5]
[364798175,1749245444280,-480.0,0.00027397,5]
[364798176,1749245444290,-888.42,0.00027397,5]
[364798177,1749245444299,-683.26,0.00027397,5]
[364798178,1749245444309,-1453.42,0.00027397,5]
[364798179,1749245444319,-2483.76,0.00027397,5]
[364798180,1749245444329,-480.0,0.00027397,5]
[364798181,1749245444338,-323.429583,0.00027397,5]
[364798182,1749245444348,-480.0,0.00027397,5]
[364798183,1749245444358,-365.51950285,0.00027397,5]
[364798184,1749245444367,-5842.1,0.00027397,5]
[364798185,1749245444377,-747.35,0.00027397,5]
[364798186,1749245444386,-5650.54,0.00027397,5]
[364798187,1749245444396,-2077.01,0.00027397,5]
[364798188,1749245444405,-480.0,0.00027397,5]
[364798189,1749245444415,-950.27,0.00027397,5]
[364798190,1749245444424,-480.0,0.00027397,5]
[364798191,1749245444434,-734.81,0.00027397,5]
[364798192,1749245444444,-480.0,0.00027397,5]
[364798193,1749245444453,-480.0,0.00027397,5]
[364798194,1749245444463,-958.16,0.00027397,5]
[364798195,1749245444473,-482.25241226,0.00027397,5]
[364798196,1749245444484,-638.71,0.00027397,5]
[364798197,1749245444498,-1117.56,0.00027397,5]
[364798198,1749245444507,-480.0,0.00027397,5]
[364798199,1749245444517,-3319.06,0.00027397,5]
[364798200,1749245444527,-480.0,0.00027397,5]
[364798201,1749245444536,-10869.49,0.00027397,5]
[364798202,1749245444546,-480.0,0.00027397,5]
[364798203,1749245444555,-480.0,0.00027397,5]
[364798204,1749245444565,-992.85,0.00027397,5]
[364798205,1749245444574,-530.29,0.00027397,2]
[364798206,1749245444585,-482.53154528,0.00027397,5]
[364798207,1749245444595,-480.0,0.00027397,5]
[364798208,1749245444604,-1496.95,0.00027397,5]
[364798209,1749245444613,-478.72968721,0.00027397,5]
[364798210,1749245444622,-480.0,0.00027397,5]
[364798211,1749245444631,-516.46,0.00027397,5]
[364798212,1749245444640,-63805.06,0.00027397,5]
[364798213,1749245444651,-300.0,0.00027397,2]
[364798214,1749245444661,-700.0,0.00027397,2]
[364798215,1749245444671,-1864.56,0.00027397,2]
[364798216,1749245444681,-156.68,0.00027397,2]
[364798217,1749245444693,-502.36,0.00027397,2]
[364798218,1749245444702,-325.23315783,0.000274,2]
[364798219,1749245444714,-5240.16183361,0.00027411,2]
[364798220,1749245444723,-150.0,0.00027425,2]
[364798221,1749245444733,-9117.97745906,0.00027432,2]
[364798222,1749245444741,-30000.0,0.00027432,2]
[364798223,1749245444751,-355.23757582,0.0002744,2]
[364798224,1749245444760,-150.0,0.00027473,2]
[364798225,1749245444770,-150.0,0.00027492,2]
[364798226,1749245444779,-1200.0,0.000275,10]
[364798227,1749245444789,-500.0,0.00027521,5]
[364798228,1749245444798,-21911.0,0.00027534,2]
[364798229,1749245444807,-423.23,0.0002755,5]
[364798230,1749245444817,-500.0,0.0002755,5]
[364798231,1749245444826,-625.65,0.0002756,5]
[364798232,1749245444836,-212.73304879,0.00027561,5]
[364798233,1749245444845,-480.0,0.00027561,5]
[364798234,1749245444855,-480.0,0.00027561,5]
[364798235,1749245444864,-480.0,0.00027561,5]
[364798236,1749245444873,-202.16553959,0.00027561,5]
[364798237,1749245444882,-480.0,0.00027561,5]
[364798238,1749245444891,-651.31,0.00027561,5]
[364798239,1749245444901,-480.0,0.00027561,5]
[364798240,1749245444910,-480.0,0.00027561,5]
[364798241,1749245444920,-480.0,0.00027561,5]
[364798242,1749245444929,-483.33,0.00027561,5]
[364798243,1749245444939,-538.52,0.00027561,5]
[364798244,1749245444948,-480.0,0.00027561,5]
[364798245,1749245444957,-480.0,0.00027561,2]
[364798246,1749245444967,-480.0,0.00027561,5]
[364798247,1749245444976,-292.83485633,0.00027561,5]
[364798248,1749245444986,-480.0,0.00027561,5]
[364798249,1749245444995,-685.83,0.00027561,5]
[364798250,1749245445006,-480.0,0.00027561,5]
[364798251,1749245445018,-480.0,0.00027561,5]
[364798252,1749245445028,-549.23,0.00027561,5]
[364798253,1749245445037,-500.02,0.00027561,5]
[364798254,1749245445047,-480.0,0.00027561,5]
[364798255,1749245445057,-619.23,0.00027561,5]
[364798256,1749245445066,-480.0,0.00027561,5]
[364798257,1749245445076,-480.0,0.00027561,5]
[364798258,1749245445087,-538.98,0.00027561,5]
[364798259,1749245445103,-480.0,0.00027561,5]
[364798260,1749245445116,-480.0,0.00027561,5]
[364798261,1749245445130,-516.51,0.00027561,5]
[364798262,1749245445141,-480.0,0.00027561,5]
[364798263,1749245445151,-480.0,0.00027561,5]
[364798264,1749245445162,-480.0,0.00027561,5]
[364798265,1749245445175,-508.36,0.00027561,5]
[364798266,1749245445186,-480.0,0.00027561,5]
[364798267,1749245445199,-594.92,0.00027561,5]
[364798268,1749245445211,-480.0,0.00027561,5]
[364798269,1749245445223,-480.0,0.00027561,5]
[364798270,1749245445237,-655.89,0.00027561,5]
[364798271,1749245445249,-480.0,0.00027561,5]
[364798272,1749245445262,-480.0,0.00027561,5]
[364798273,1749245445274,-533.19,0.00027561,5]
[364798274,1749245445287,-480.0,0.00027561,5]
[364798275,1749245445298,-508.07,0.00027561,5]
[364798276,1749245445309,-480.0,0.00027561,5]
[364798277,1749245445319,-504.81,0.00027561,5]
[364798278,1749245445331,-480.0,0.00027561,5]
[364798279,1749245445344,-480.0,0.00027561,5]
[364798280,1749245445357,-480.0,0.00027561,5]
[364798281,1749245445369,-556.66,0.00027561,5]
[364798282,1749245445381,-656.61,0.00027561,5]
[364798283,1749245445393,-480.0,0.00027561,5]
[364798284,1749245445405,-480.0,0.00027561,5]
[364798285,1749245445418,-480.0,0.00027561,5]
[364798286,1749245445430,-480.0,0.00027561,5]
[364798287,1749245445443,-880.83,0.00027561,5]
[364798288,1749245445454,-480.0,0.00027561,5]
[364798289,1749245445466,-1046.06,0.00027561,5]
[364798290,1749245445478,-571.800087,0.00027561,5]
[364798291,1749245445492,-480.0,0.00027561,5]
[364798292,1749245445504,-480.0,0.00027561,5]
[364798293,1749245445515,-480.0,0.00027561,5]
[364798294,1749245445527,-480.0,0.00027561,5]
[364798295,1749245445539,-480.0,0.00027561,5]
[364798296,1749245445550,-480.0,0.00027561,5]
[364798297,1749245445562,-559.351977,0.00027561,5]
[364798298,1749245445575,-480.0,0.00027561,5]
[364798299,1749245445588,-636.86,0.00027561,5]
[364798300,1749245445599,-492.47,0.00027561,5]
[364798301,1749245445611,-480.0,0.00027561,5]
[364798302,1749245445622,-480.0,0.00027561,5]
[364798303,1749245445633,-527.03,0.00027561,5]
[364798304,1749245445643,-480.0,0.00027561,5]
[364798305,1749245445653,-527.07,0.00027561,5]
[364798306,1749245445663,-480.0,0.00027561,5]
[364798307,1749245445676,-480.0,0.00027561,5]
[364798308,1749245445688,-829.98,0.00027561,5]
[364798309,1749245445702,-480.0,0.00027561,5]
[364798310,1749245445714,-480.0,0.00027561,5]
[364798311,1749245445724,-480.0,0.00027561,5]
[364798312,1749245445734,-480.0,0.00027561,5]
[364798313,1749245445744,-480.0,0.00027561,5]
[364798314,1749245445754,-480.0,0.00027561,5]
[364798315,1749245445765,-492.47,0.00027561,5]
[364798316,1749245445776,-480.0,0.00027561,5]
[364798317,1749245445789,-480.0,0.00027561,5]
[364798318,1749245445801,-523.07,0.00027561,5]
[364798319,1749245445812,-480.0,0.00027561,5]
[364798320,1749245445822,-480.0,0.00027561,5]
[364798321,1749245445834,-480.0,0.00027561,5]
[364798322,1749245445844,-480.0,0.00027561,5]
[364798323,1749245445855,-480.0,0.00027561,5]
[364798324,1749245445866,-800.29,0.00027561,5]
[364798325,1749245445877,-480.0,0.00027561,5]
[364798326,1749245445888,-480.0,0.00027561,5]
[364798327,1749245445898,-480.0,0.00027561,5]
[364798328,1749245445909,-702.95,0.00027561,5]
[364798329,1749245445920,-480.0,0.00027561,5]
[364798330,1749245445931,-771.000696,0.00027561,5]
[364798331,1749245445942,-480.0,0.00027561,5]
[364798332,1749245445952,-480.0,0.00027561,5]
[364798333,1749245445963,-480.0,0.00027561,5]
[364798334,1749245445974,-315.93712966,0.00027561,5]
[364798335,1749245445986,-5472.06,0.00027561,5]
[364798336,1749245445997,-1065.447344,0.00027561,5]
[364798337,1749245446011,-480.0,0.00027561,5]
[364798338,1749245446022,-2440.57,0.00027561,5]
[364798339,1749245446033,-1814.61,0.00027561,5]
[364798340,1749245446044,-480.0,0.00027561,5]
[364798341,1749245446056,-393.14228996,0.00027561,5]
[364798342,1749245446068,-5858.97,0.00027561,5]
[364798343,1749245446079,-2363.07,0.00027561,5]
[364798344,1749245446091,-1000.0,0.00027561,2]
[364798345,1749245446102,-480.0,0.00027561,5]
[364798346,1749245446116,-585.97,0.00027561,5]
[364798347,1749245446127,-480.0,0.00027561,5]
[364798348,1749245446138,-480.0,0.00027561,5]
[364798349,1749245446149,-480.0,0.00027561,5]
[364798351,1749245446160,-659.35,0.00027561,5]
[364798352,1749245446170,-480.0,0.00027561,5]
[364798353,1749245446181,-1396.08,0.00027561,5]
[364798354,1749245446192,-642.87,0.00027561,5]
[364798355,1749245446202,-941.0,0.00027561,5]
[364798356,1749245446213,-1168.575528,0.00027561,5]
[364798357,1749245446224,-480.0,0.00027561,5]
[364798358,1749245446240,-900.91,0.00027561,5]
[364798359,1749245446251,-843.14,0.00027561,5]
[364798360,1749245446262,-506.99,0.00027561,5]
[364798362,1749245446273,-10746.06,0.00027561,5]
[364798364,1749245446283,-1353.33,0.00027561,5]
[364798366,1749245446294,-480.0,0.00027561,5]
[364798368,1749245446305,-480.0,0.00027561,5]
[364798371,1749245446316,-480.0,0.00027561,5]
[364798373,1749245446327,-1533.93,0.00027561,5]
[364798375,1749245446337,-1127.16,0.00027561,5]
[364798377,1749245446348,-1222.61,0.00027561,5]
[364798379,1749245446359,-1096.57,0.00027561,5]
[364798381,1749245446370,-638.2,0.00027561,5]
[364798383,1749245446381,-2733.98,0.00027561,5]
[364798385,1749245446392,-1416.92,0.00027561,5]
[364798388,1749245446403,-1292.067761,0.00027561,5]
[364798390,1749245446414,-1360.31,0.00027561,5]
[364798392,1749245446424,-868.83,0.00027561,5]
[364798394,1749245446435,-2950.26,0.00027561,5]
[364798396,1749245446445,-731.97,0.00027561,5]
[364798398,1749245446456,-1184.81,0.00027561,5]
[364798400,1749245446466,-1342.0,0.00027561,5]
[364798402,1749245446477,-480.0,0.00027561,5]
[364798405,1749245446489,-731.22,0.00027561,5]
[364798407,1749245446499,-1139.52,0.00027561,5]
[364798409,1749245446510,-480.0,0.00027561,5]
[364798411,1749245446521,-480.0,0.00027561,5]
[364798413,1749245446531,-2337.68,0.00027561,5]
[364798415,1749245446542,-480.0,0.00027561,5]
[364798417,1749245446552,-1831.6,0.00027561,5]
[364798419,1749245446563,-763.29,0.00027561,5]
[364798420,1749245446573,-1132.32,0.00027561,5]
[364798421,1749245446584,-480.0,0.00027561,5]
[364798423,1749245446595,-3008.51,0.00027561,5]
[364798424,1749245446606,-2113.05,0.00027561,5]
[364798425,1749245446617,-480.0,0.00027561,5]
[364798426,1749245446628,-862.65,0.00027561,5]
[364798427,1749245446638,-480.0,0.00027561,5]
[364798428,1749245446649,-2923.97,0.00027561,5]
[364798429,1749245446660,-1453.13,0.00027561,5]
[364798430,1749245446670,-4156.92,0.00027561,5]
[364798431,1749245446680,-480.0,0.00027561,5]
[364798432,1749245446691,-1274.65,0.00027561,5]
[364798433,1749245446701,-1332.06,0.00027561,5]
[364798434,1749245446711,-677.14666,0.00027561,5]
[364798435,1749245446723,-1082.7,0.00027561,5]
[364798438,1749245446734,-480.0,0.00027561,5]
[364798439,1749245446744,-1025.06,0.00027561,5]
[364798440,1749245446755,-480.0,0.00027561,5]
[364798441,1749245446766,-480.0,0.00027561,5]
[364798442,1749245446776,-1551.16,0.00027561,5]
[364798443,1749245446787,-1882.05,0.00027561,5]
[364798444,1749245446798,-951.78,0.00027561,5]
[364798445,1749245446808,-598.87,0.00027561,5]
[364798446,1749245446819,-264.16652672,0.00027561,5]
[364798447,1749245446830,-480.0,0.00027561,5]
[364798448,1749245446840,-1613.93,0.00027561,5]
[364798450,1749245446851,-480.0,0.00027561,5]
[364798451,1749245446862,-817.65,0.00027561,5]
[364798452,1749245446872,-3420.12,0.00027561,5]
[364798453,1749245446883,-480.0,0.00027561,5]
[364798454,1749245446893,-603.979676,0.00027561,5]
[364798455,1749245446903,-480.0,0.00027561,5]
[364798456,1749245446914,-480.0,0.00027561,5]
[364798457,1749245446924,-1779.32,0.00027561,5]
[364798458,1749245446935,-4369.27,0.00027561,5]
[364798459,1749245446945,-1294.16,0.00027561,5]
[364798460,1749245446955,-1215.8,0.00027561,5]
[364798461,1749245446966,-1228.33,0.00027561,5]
[364798462,1749245446976,-632.6,0.00027561,5]
[364798463,1749245446987,-480.0,0.00027561,5]
[364798464,1749245446997,-480.0,0.00027561,5]
[364798465,1749245447012,-692.3,0.00027561,5]
[364798466,1749245447022,-1300.84,0.00027561,5]
[364798467,1749245447033,-1266.65,0.00027561,5]
[364798468,1749245447043,-12112.58,0.00027561,5]
[364798469,1749245447055,-497.69,0.00027561,5]
[364798470,1749245447065,-683.2,0.00027561,5]
[364798471,1749245447075,-480.0,0.00027561,5]
[364798472,1749245447088,-501.63,0.00027561,5]
[364798473,1749245447099,-705.09,0.00027561,5]
[364798474,1749245447110,-4732.68,0.00027561,5]
[364798475,1749245447122,-717.45,0.00027561,5]
[364798476,1749245447132,-974.5,0.00027561,5]
[364798477,1749245447143,-4416.75,0.00027561,5]
[364798478,1749245447153,-1656.72,0.00027561,5]
[364798479,1749245447164,-480.0,0.00027561,5]
[364798480,1749245447174,-480.0,0.00027561,5]
[364798481,1749245447185,-480.0,0.00027561,5]
[364798482,1749245447196,-480.0,0.00027561,5]
[364798483,1749245447206,-480.0,0.00027561,5]
[364798484,1749245447216,-480.0,0.00027561,5]
[364798485,1749245447227,-682.68,0.00027561,5]
[364798487,1749245447238,-217.752716,0.00027561,5]
[364798488,1749245447248,-607.26,0.00027561,5]
[364798489,1749245447259,-7562.75,0.00027561,5]
[364798490,1749245447270,-597.24,0.00027561,5]
[364798491,1749245447280,-3844.59,0.00027561,5]
[364798492,1749245447290,-621.94,0.00027561,5]
[364798493,1749245447301,-463.24735372,0.00027561,5]
[364798494,1749245447311,-480.0,0.00027561,5]
[364798495,1749245447321,-1661.61,0.00027561,5]
[364798496,1749245447332,-672.61,0.00027561,5]
[364798497,1749245447343,-480.0,0.00027561,5]
[364798498,1749245447353,-480.0,0.00027561,5]
[364798499,1749245447363,-2171.5,0.00027561,5]
[364798500,1749245447374,-480.0,0.00027561,5]
[364798501,1749245447385,-480.0,0.00027561,5]
[364798502,1749245447395,-904.82,0.00027561,5]
[364798503,1749245447405,-480.0,0.00027561,5]
[364798504,1749245447416,-487.01,0.00027561,5]
[364798505,1749245447428,-3523.57,0.00027561,5]
[364798506,1749245447439,-1412.37,0.00027561,5]
[364798507,1749245447449,-211.41374949,0.00027561,5]
[364798508,1749245447459,-16871.99,0.00027561,5]
[364798509,1749245447469,-590.09,0.00027561,5]
[364798510,1749245447480,-360.0,0.00027561,5]
[364798511,1749245447491,-3605.79,0.00027561,5]
[364798512,1749245447501,-1584.5,0.00027561,5]
[364798513,1749245447511,-561.75823326,0.00027561,5]
[364798514,1749245447521,-569.63,0.00027561,5]
[364798515,1749245447532,-480.0,0.00027561,5]
[364798516,1749245447543,-1945.39,0.00027561,5]
[364798517,1749245447554,-616.72,0.00027561,5]
[364798518,1749245447565,-3465.3,0.00027561,5]
[364798519,1749245447577,-1081.7,0.00027561,5]
[364798520,1749245447588,-439.98438175,0.00027561,5]
[364798521,1749245447600,-2006.64,0.00027561,5]
[364798522,1749245447611,-531.04,0.00027561,5]
[364798523,1749245447622,-607.53,0.00027561,5]
[364798524,1749245447632,-480.0,0.00027561,5]
[364798525,1749245447641,-1607.92,0.00027561,5]
[364798526,1749245447651,-480.0,0.00027561,5]
[364798527,1749245447662,-480.0,0.00027561,5]
[364798528,1749245447672,-1750.07,0.00027561,5]
[364798529,1749245447682,-1119.57,0.00027561,5]
[364798530,1749245447692,-911.9,0.00027561,5]
[364798531,1749245447703,-480.0,0.00027561,5]
[364798532,1749245447713,-480.0,0.00027561,5]
[364798533,1749245447723,-480.0,0.00027561,5]
[364798534,1749245447734,-1710.78,0.00027561,5]
[364798535,1749245447744,-689.26,0.00027561,5]
[364798536,1749245447755,-480.0,0.00027561,5]
[364798537,1749245447767,-480.0,0.00027561,5]
[364798538,1749245447778,-1070.37,0.00027561,5]
[364798539,1749245447789,-623.94,0.00027561,5]
[364798540,1749245447800,-480.0,0.00027561,5]
[364798541,1749245447811,-1791.7,0.00027561,5]
[364798542,1749245447824,-1965.72,0.00027561,5]
[364798543,1749245447834,-480.0,0.00027561,5]
[364798544,1749245447844,-240.124881,0.00027561,5]
[364798545,1749245447854,-1996.69,0.00027561,5]
[364798546,1749245447864,-3288.44,0.00027561,5]
[364798547,1749245447874,-480.0,0.00027561,5]
[364798548,1749245447884,-1032.5,0.00027561,5]
[364798549,1749245447894,-771.7,0.00027561,5]
[364798550,1749245447904,-1627.97,0.00027561,5]
[364798551,1749245447914,-480.0,0.00027561,5]
[364798552,1749245447924,-670.33,0.00027561,5]
[364798553,1749245447934,-575.24,0.00027561,5]
[364798554,1749245447944,-4755.29,0.00027561,5]
[364798555,1749245447954,-2179.19,0.00027561,5]
[364798556,1749245447965,-480.0,0.00027561,5]
[364798557,1749245447977,-497.3887721,0.00027561,5]
[364798558,1749245447987,-1950.69,0.00027561,5]
[364798559,1749245447999,-480.0,0.00027561,5]
[364798560,1749245448012,-622.31,0.00027561,5]
[364798561,1749245448022,-888.42,0.00027561,5]
[364798562,1749245448033,-1453.42,0.00027561,5]
[364798563,1749245448043,-683.26,0.00027561,5]
[364798564,1749245448054,-2483.76,0.00027561,5]
[364798565,1749245448064,-323.429583,0.00027561,5]
[364798566,1749245448075,-480.0,0.00027561,5]
[364798567,1749245448085,-747.35,0.00027561,5]
[364798568,1749245448096,-5842.1,0.00027561,5]
[364798569,1749245448107,-5650.54,0.00027561,5]
[364798570,1749245448117,-2077.01,0.00027561,5]
[364798571,1749245448129,-950.27,0.00027561,5]
[364798572,1749245448139,-480.0,0.00027561,5]
[364798573,1749245448150,-734.81,0.00027561,5]
[364798574,1749245448160,-480.0,0.00027561,5]
[364798575,1749245448171,-480.0,0.00027561,5]
[364798576,1749245448182,-958.16,0.00027561,5]
[364798577,1749245448193,-638.71,0.00027561,5]
[364798578,1749245448203,-1117.56,0.00027561,5]
[364798579,1749245448214,-480.0,0.00027561,5]
[364798580,1749245448225,-3319.06,0.00027561,5]
[364798581,1749245448236,-480.0,0.00027561,5]
[364798582,1749245448248,-10869.49,0.00027561,5]
[364798583,1749245448258,-480.0,0.00027561,5]
[364798584,1749245448269,-992.85,0.00027561,5]
[364798585,1749245448280,-530.29,0.00027561,2]
[364798586,1749245448291,-1496.95,0.00027561,5]
[364798587,1749245448301,-480.0,0.00027561,5]
[364798588,1749245448313,-516.46,0.00027561,5]
[364798589,1749245448724,-63805.06,0.00027561,5]
[364798590,1749245448747,-173.22715546,0.00027573,5]